fUST/lending_fUST_20241227
["ID","MTS","AMOUNT","RATE_DAILY","PERIOD"]
[346774941,1735277438334,-500.0,9.404e-05,2]
[346774942,1735277438344,-500.0,9.404e-05,2]
[346774943,1735277438354,-500.0,9.404e-05,2]
[346774944,1735277438363,-500.0,9.404e-05,2]
[346774945,1735277438372,-500.0,9.404e-05,2]
[346774947,1735277438382,-500.0,9.404e-05,2]
[346774948,1735277438391,-500.0,9.404e-05,2]
[346774949,1735277438401,-500.0,9.404e-05,2]
[346774950,1735277438410,-500.0,9.404e-05,2]
[346774951,1735277438419,-666.64,9.404e-05,2]
[346774952,1735277438428,-168.0,9.404e-05,2]
[346774953,1735277438438,-500.0,9.404e-05,2]
[346774954,1735277438447,-538.12,9.404e-05,2]
[346774955,1735277438456,-500.0,9.404e-05,2]
[346774956,1735277438468,-500.0,9.404e-05,2]
[346774957,1735277438478,-500.0,9.404e-05,2]
[346774958,1735277438487,-225.87835179,9.404e-05,2]
[346774959,1735277438592,-500.0,9.404e-05,2]
[346774960,1735277438601,-500.0,9.404e-05,2]
[346774961,1735277438611,-505.00623666,9.404e-05,2]
[346774962,1735277438620,-500.0,9.404e-05,2]
[346774963,1735277438630,-500.0,9.404e-05,2]
[346774965,1735277438640,-500.0,9.404e-05,2]
[346774966,1735277438649,-505.05879928,9.404e-05,2]
[346774967,1735277438659,-672.54,9.404e-05,2]
[346774968,1735277438668,-500.0,9.404e-05,2]
[346774969,1735277438677,-500.0,9.404e-05,2]
[346774970,1735277438686,-500.0,9.404e-05,2]
[346774971,1735277438696,-500.0,9.404e-05,2]
[346774972,1735277438706,-500.0,9.404e-05,2]
[346774973,1735277438715,-500.0,9.404e-05,2]
[346774974,1735277438725,-500.0,9.404e-05,2]
[346774975,1735277438734,-902.09,9.404e-05,2]
[346774976,1735277438742,-1581.48,9.404e-05,2]
[346774977,1735277438752,-538.89,9.404e-05,2]
[346774978,1735277438761,-500.0,9.404e-05,2]
[346774979,1735277438770,-500.0,9.404e-05,2]
[346774980,1735277438780,-500.0,9.404e-05,2]
[346774981,1735277438789,-727.14,9.404e-05,2]
[346774982,1735277438798,-500.0,9.404e-05,2]
[346774983,1735277438808,-825.81,9.404e-05,2]
[346774984,1735277438818,-500.0,9.404e-05,2]
[346774985,1735277438827,-842.53,9.404e-05,2]
[346774986,1735277438836,-854.6,9.404e-05,2]
[346774987,1735277438846,-500.0,9.404e-05,2]
[346774988,1735277438856,-504.46116414,9.404e-05,2]
[346774989,1735277438866,-500.0,9.404e-05,2]
[346774990,1735277438875,-500.0,9.404e-05,2]
[346774992,1735277438885,-500.0,9.404e-05,2]
[346774993,1735277438895,-500.0,9.404e-05,2]
[346774994,1735277438905,-500.0,9.404e-05,2]
[346774995,1735277438914,-500.0,9.404e-05,2]
[346774996,1735277438924,-500.0,9.404e-05,2]
[346774997,1735277438933,-500.0,9.404e-05,2]
[346774998,1735277438942,-500.0,9.404e-05,2]
[346774999,1735277438951,-813.8,9.404e-05,2]
[346775000,1735277438960,-500.0,9.404e-05,2]
[346775001,1735277438969,-1319.14,9.404e-05,2]
[346775002,1735277438979,-524.91,9.404e-05,2]
[346775003,1735277438989,-500.0,9.404e-05,2]
[346775004,1735277438998,-739.0,9.404e-05,2]
[346775005,1735277439007,-652.82,9.404e-05,2]
[346775006,1735277439016,-500.0,9.404e-05,2]
[346775007,1735277439025,-500.0,9.404e-05,2]
[346775008,1735277439035,-500.0,9.404e-05,2]
[346775009,1735277439045,-500.0,9.404e-05,2]
[346775010,1735277439054,-500.0,9.404e-05,2]
[346775011,1735277439063,-500.0,9.404e-05,2]
[346775012,1735277439072,-500.0,9.404e-05,2]
[346775013,1735277439082,-500.0,9.404e-05,2]
[346775014,1735277439091,-500.0,9.404e-05,2]
[346775015,1735277439101,-500.0,9.404e-05,2]
[346775016,1735277439110,-648.37,9.404e-05,2]
[346775017,1735277439120,-500.0,9.404e-05,2]
[346775018,1735277439130,-19221.26,9.404e-05,2]
[346775019,1735277439139,-500.0,9.405e-05,2]
[346775020,1735277439149,-345.40602296,9.405e-05,2]
[346775022,1735277439158,-500.0,9.405e-05,2]
[346775023,1735277439167,-502.55117259,9.405e-05,2]
[346775024,1735277439176,-496.08295239,9.405e-05,2]
[346775025,1735277439186,-593.02187688,9.405e-05,2]
[346775026,1735277439196,-508.2010263,9.405e-05,2]
[346775027,1735277439205,-500.0,9.405e-05,2]
[346775028,1735277439214,-500.0,9.405e-05,2]
[346775029,1735277439223,-500.0,9.405e-05,2]
[346775030,1735277439232,-500.0,9.405e-05,2]
[346775031,1735277439241,-500.0,9.405e-05,2]
[346775032,1735277439251,-500.0,9.405e-05,2]
[346775033,1735277439259,-500.0,9.405e-05,2]
[346775034,1735277439269,-500.0,9.405e-05,2]
[346775035,1735277439278,-500.0,9.405e-05,2]
[346775036,1735277439287,-500.0,9.405e-05,2]
[346775037,1735277439296,-500.0,9.405e-05,2]
[346775038,1735277439306,-273.16240629,9.405e-05,2]
[346775039,1735277439315,-500.0,9.405e-05,2]
[346775040,1735277439324,-500.0,9.405e-05,2]
[346775041,1735277439334,-500.0,9.405e-05,2]
[346775042,1735277439343,-504.043751,9.405e-05,2]
[346775043,1735277439352,-500.0,9.405e-05,2]
[346775044,1735277439361,-500.0,9.405e-05,2]
[346775045,1735277439371,-500.0,9.405e-05,2]
[346775046,1735277439380,-598.53094804,9.405e-05,2]
[346775047,1735277439389,-500.0,9.405e-05,2]
[346775048,1735277439398,-500.0,9.405e-05,2]
[346775049,1735277439407,-500.0,9.405e-05,2]
[346775050,1735277439416,-528.44917059,9.405e-05,2]
[346775051,1735277439425,-500.0,9.405e-05,2]
[346775052,1735277439435,-502.97333494,9.405e-05,2]
[346775053,1735277439444,-500.0,9.405e-05,2]
[346775054,1735277439453,-500.0,9.405e-05,2]
[346775055,1735277439463,-500.0,9.405e-05,2]
[346775056,1735277439476,-381.11910462,9.405e-05,2]
[346775057,1735277439485,-503.47198621,9.405e-05,2]
[346775058,1735277439495,-508.80629684,9.405e-05,2]
[346775059,1735277439505,-633.81800468,9.405e-05,2]
[346775060,1735277439515,-500.0,9.405e-05,2]
[346775061,1735277439525,-500.0,9.405e-05,2]
[346775062,1735277439535,-500.0,9.405e-05,2]
[346775063,1735277439545,-500.0,9.405e-05,2]
[346775064,1735277439555,-500.0,9.405e-05,2]
[346775065,1735277439564,-500.0,9.405e-05,2]
[346775066,1735277439574,-500.0,9.405e-05,2]
[346775067,1735277439584,-284.96168798,9.405e-05,2]
[346775068,1735277439594,-500.0,9.405e-05,2]
[346775069,1735277439605,-500.0,9.405e-05,2]
[346775070,1735277439616,-307.26674055,9.405e-05,2]
[346775071,1735277439625,-500.0,9.405e-05,2]
[346775072,1735277439635,-151.25270604,9.405e-05,2]
[346775073,1735277439645,-500.0,9.405e-05,2]
[346775074,1735277439656,-577.9439874,9.405e-05,2]
[346775075,1735277439666,-500.0,9.405e-05,2]
[346775076,1735277439676,-500.0,9.405e-05,2]
[346775077,1735277439685,-503.8261317,9.405e-05,2]
[346775078,1735277439695,-502.3234434,9.405e-05,2]
[346775079,1735277439704,-500.0,9.405e-05,2]
[346775080,1735277439714,-500.0,9.405e-05,2]
[346775081,1735277439723,-500.0,9.405e-05,2]
[346775082,1735277439733,-534.06,9.405e-05,2]
[346775083,1735277439742,-532.22512531,9.405e-05,2]
[346775085,1735277439752,-500.0,9.405e-05,2]
[346775087,1735277439762,-500.0,9.405e-05,2]
[346775089,1735277439771,-607.18424753,9.405e-05,2]
[346775090,1735277439780,-583.06125413,9.405e-05,2]
[346775091,1735277439790,-500.0,9.405e-05,2]
[346775093,1735277439799,-500.0,9.405e-05,2]
[346775094,1735277439808,-500.0,9.405e-05,2]
[346775096,1735277439818,-500.0,9.405e-05,2]
[346775097,1735277439828,-500.0,9.405e-05,2]
[346775098,1735277439838,-648.37,9.405e-05,2]
[346775099,1735277439847,-648.37,9.405e-05,2]
[346775100,1735277439860,-648.37,9.405e-05,2]
[346775101,1735277439870,-500.0,9.405e-05,2]
[346775102,1735277439879,-500.0,9.405e-05,2]
[346775103,1735277439889,-232.38229791,9.405e-05,2]
[346775104,1735277439899,-500.0,9.406e-05,2]
[346775105,1735277439908,-500.0,9.406e-05,2]
[346775106,1735277439917,-500.0,9.406e-05,2]
[346775107,1735277439927,-548.2,9.406e-05,2]
[346775108,1735277439936,-377.85298173,9.406e-05,2]
[346775109,1735277439946,-500.0,9.406e-05,2]
[346775110,1735277439955,-500.0,9.406e-05,2]
[346775111,1735277439964,-500.0,9.406e-05,2]
[346775113,1735277439974,-500.0,9.406e-05,2]
[346775114,1735277439983,-500.0,9.406e-05,2]
[346775115,1735277439992,-507.28905441,9.406e-05,2]
[346775116,1735277440002,-500.0,9.406e-05,2]
[346775117,1735277440011,-519.08,9.406e-05,2]
[346775118,1735277440020,-500.0,9.406e-05,2]
[346775119,1735277440030,-500.0,9.406e-05,2]
[346775121,1735277440040,-2047.906323,9.406e-05,2]
[346775122,1735277440049,-501.56831627,9.406e-05,2]
[346775124,1735277440059,-2047.906323,9.406e-05,2]
[346775125,1735277440068,-500.0,9.406e-05,2]
[346775126,1735277440078,-500.0,9.406e-05,2]
[346775127,1735277440088,-500.0,9.406e-05,2]
[346775128,1735277440098,-4461.53,9.406e-05,2]
[346775129,1735277440108,-500.0,9.406e-05,2]
[346775130,1735277440117,-500.0,9.406e-05,2]
[346775131,1735277440127,-500.0,9.406e-05,2]
[346775132,1735277440137,-500.0,9.406e-05,2]
[346775133,1735277440146,-151.0,9.406e-05,2]
[346775134,1735277440155,-500.0,9.406e-05,2]
[346775135,1735277440164,-500.0,9.406e-05,2]
[346775136,1735277440174,-500.0,9.406e-05,2]
[346775137,1735277440184,-525.66,9.406e-05,2]
[346775138,1735277440193,-500.0,9.406e-05,2]
[346775139,1735277440203,-614.1,9.406e-05,2]
[346775140,1735277440212,-1394.07,9.406e-05,2]
[346775141,1735277440221,-502.64934432,9.406e-05,2]
[346775143,1735277440231,-500.0,9.406e-05,2]
[346775144,1735277440240,-500.0,9.406e-05,2]
[346775145,1735277440250,-500.0,9.406e-05,2]
[346775146,1735277440260,-168.53422188,9.406e-05,2]
[346775147,1735277440269,-500.0,9.406e-05,2]
[346775148,1735277440279,-500.0,9.406e-05,2]
[346775149,1735277440288,-500.0,9.406e-05,2]
[346775151,1735277440298,-501.43503099,9.406e-05,2]
[346775152,1735277440307,-500.0,9.406e-05,2]
[346775153,1735277440317,-502.53981194,9.406e-05,2]
[346775154,1735277440327,-500.0,9.406e-05,2]
[346775155,1735277440336,-648.37,9.406e-05,2]
[346775156,1735277440346,-500.0,9.406e-05,2]
[346775157,1735277440355,-648.37,9.406e-05,2]
[346775158,1735277440365,-500.0,9.406e-05,2]
[346775159,1735277440374,-500.0,9.406e-05,2]
[346775160,1735277440384,-492.88967352,9.407e-05,2]
[346775161,1735277440393,-500.0,9.407e-05,2]
[346775162,1735277440403,-500.0,9.407e-05,2]
[346775163,1735277440413,-500.0,9.407e-05,2]
[346775164,1735277440422,-506.61062794,9.407e-05,2]
[346775165,1735277440431,-500.0,9.407e-05,2]
[346775166,1735277440441,-500.0,9.407e-05,2]
[346775167,1735277440451,-500.0,9.407e-05,2]
[346775169,1735277440536,-500.0,9.407e-05,2]
[346775170,1735277440547,-587.76210932,9.407e-05,2]
[346775171,1735277440557,-500.0,9.407e-05,2]
[346775172,1735277440566,-500.0,9.407e-05,2]
[346775173,1735277440575,-253.21643426,9.407e-05,2]
[346775175,1735277440585,-500.0,9.407e-05,2]
[346775176,1735277440594,-500.0,9.407e-05,2]
[346775177,1735277440604,-634.91974947,9.407e-05,2]
[346775178,1735277440613,-385.55894362,9.407e-05,2]
[346775179,1735277440623,-501.27588559,9.407e-05,2]
[346775180,1735277440633,-151.0,9.407e-05,2]
[346775181,1735277440642,-500.0,9.407e-05,2]
[346775182,1735277440652,-500.0,9.407e-05,2]
[346775183,1735277440661,-500.0,9.407e-05,2]
[346775184,1735277440671,-500.0,9.407e-05,2]
[346775185,1735277440680,-500.0,9.407e-05,2]
[346775186,1735277440690,-500.0,9.407e-05,2]
[346775187,1735277440700,-500.0,9.407e-05,2]
[346775188,1735277440712,-506.33120208,9.407e-05,2]
[346775189,1735277440723,-434.17157866,9.407e-05,2]
[346775190,1735277440734,-488.49441371,9.407e-05,2]
[346775191,1735277440743,-506.41697892,9.407e-05,2]
[346775192,1735277440752,-476.52116996,9.407e-05,2]
[346775193,1735277440762,-500.0,9.407e-05,2]
[346775194,1735277440771,-500.0,9.407e-05,2]
[346775195,1735277440780,-502.53447067,9.407e-05,2]
[346775196,1735277440790,-501.69695468,9.407e-05,2]
[346775198,1735277440799,-500.0,9.407e-05,2]
[346775199,1735277440809,-500.0,9.407e-05,2]
[346775200,1735277440818,-506.00330098,9.407e-05,2]
[346775201,1735277440827,-2047.906323,9.407e-05,2]
[346775202,1735277440836,-2047.906323,9.407e-05,2]
[346775203,1735277440845,-2047.906323,9.407e-05,2]
[346775204,1735277440855,-2047.906323,9.407e-05,2]
[346775205,1735277440864,-501.2120184,9.407e-05,2]
[346775206,1735277440873,-501.80677034,9.407e-05,2]
[346775207,1735277440882,-501.06138964,9.407e-05,2]
[346775208,1735277440892,-500.0,9.407e-05,2]
[346775209,1735277440902,-500.0,9.407e-05,2]
[346775210,1735277440912,-500.0,9.407e-05,2]
[346775211,1735277440921,-151.0,9.407e-05,2]
[346775212,1735277440931,-151.0,9.407e-05,2]
[346775213,1735277440940,-500.0,9.407e-05,2]
[346775214,1735277440949,-500.0,9.407e-05,2]
[346775215,1735277440958,-500.0,9.407e-05,2]
[346775216,1735277440967,-500.0,9.407e-05,2]
[346775217,1735277440977,-500.0,9.407e-05,2]
[346775218,1735277440986,-689.02,9.407e-05,2]
[346775219,1735277440996,-500.0,9.407e-05,2]
[346775220,1735277441005,-500.0,9.407e-05,2]
[346775221,1735277441015,-500.0,9.407e-05,2]
[346775222,1735277441025,-500.0,9.407e-05,2]
[346775223,1735277441035,-500.0,9.407e-05,2]
[346775224,1735277441044,-500.0,9.407e-05,2]
[346775225,1735277441053,-353.015959,9.407e-05,2]
[346775226,1735277441069,-146.984041,9.407e-05,2]
[346775227,1735277441078,-500.0,9.407e-05,2]
[346775228,1735277441088,-500.0,9.407e-05,2]
[346775229,1735277441097,-595.22932657,9.407e-05,2]
[346775230,1735277441107,-500.0,9.407e-05,2]
[346775231,1735277441116,-648.37,9.407e-05,2]
[346775232,1735277441126,-151.0,9.408e-05,2]
[346775233,1735277441136,-2047.906323,9.408e-05,2]
[346775234,1735277441145,-67.69236133,9.408e-05,2]
[346775240,1735277443502,-281.66505411,9.309e-05,2]
[346775827,1735277673927,500.0,0.00020496,120]
[346775922,1735277710016,1010.87606268,0.00023,120]
[346776133,1735277806799,1906.74868725,8.943e-05,2]
[346776156,1735277814925,1906.74868725,8.943e-05,2]
[346776160,1735277818608,24900.0,8.403e-05,2]
[346776752,1735278408135,-238.39177109,8.991e-05,2]
[346776826,1735278494990,-1293.60822891,8.991e-05,2]
[346776827,1735278495017,-300.0,9.359e-05,2]
[346776828,1735278495042,-300.0,9.359e-05,2]
[346776829,1735278495066,-383.0,9.36e-05,2]
[346776831,1735278495089,-383.0,9.36e-05,2]
[346776832,1735278495117,-383.0,9.36e-05,2]
[346776833,1735278495140,-383.0,9.36e-05,2]
[346776834,1735278495165,-183.0,9.36e-05,2]
[346776835,1735278495190,-165.19,9.36e-05,2]
[346776836,1735278495212,-189.78338488,9.396e-05,2]
[346776837,1735278495236,-581.33,9.4e-05,2]
[346776838,1735278495259,-501.53020643,9.4e-05,2]
[346776839,1735278495282,-500.0,9.4e-05,2]
[346776840,1735278495306,-500.0,9.4e-05,2]
[346776841,1735278495330,-500.0,9.4e-05,2]
[346776842,1735278495354,-556.34306284,9.4e-05,2]
[346776843,1735278495378,-500.0,9.4e-05,2]
[346776844,1735278495402,-2582.4,9.4e-05,2]
[346776845,1735278495426,-652.42,9.4e-05,2]
[346776846,1735278495450,-500.0,9.4e-05,2]
[346776847,1735278495473,-959.44,9.4e-05,2]
[346776848,1735278495494,-500.0,9.4e-05,2]
[346776849,1735278495517,-581.79,9.4e-05,2]
[346776850,1735278495540,-500.0,9.4e-05,2]
[346776851,1735278495564,-500.0,9.4e-05,2]
[346776852,1735278495586,-560.31960005,9.4e-05,2]
[346776853,1735278495610,-8054.25,9.4e-05,2]
[346776854,1735278495632,-500.0,9.4e-05,2]
[346776855,1735278495654,-1002.93846678,9.401e-05,2]
[346776856,1735278495678,-500.0,9.401e-05,2]
[346776857,1735278495703,-500.0,9.401e-05,2]
[346776858,1735278495727,-220.24484754,9.401e-05,2]
[346776859,1735278495752,-500.0,9.401e-05,2]
[346776860,1735278495776,-500.0,9.401e-05,2]
[346776861,1735278495800,-293.21754117,9.401e-05,2]
[346776862,1735278495824,-586.13,9.401e-05,2]
[346776863,1735278495846,-500.0,9.401e-05,2]
[346776864,1735278495868,-500.0,9.401e-05,2]
[346776865,1735278495891,-438.66498595,9.401e-05,2]
[346776866,1735278495912,-500.0,9.401e-05,2]
[346776867,1735278495935,-638.86,9.401e-05,2]
[346776869,1735278495957,-500.0,9.401e-05,2]
[346776870,1735278495980,-500.0,9.401e-05,2]
[346776871,1735278496004,-3170.26,9.401e-05,2]
[346776872,1735278496030,-515.7,9.401e-05,2]
[346776873,1735278496055,-500.0,9.401e-05,2]
[346776874,1735278496079,-500.0,9.401e-05,2]
[346776875,1735278496105,-500.0,9.401e-05,2]
[346776876,1735278496128,-500.0,9.401e-05,2]
[346776877,1735278496151,-500.0,9.401e-05,2]
[346776878,1735278496174,-500.0,9.401e-05,2]
[346776879,1735278496197,-500.0,9.401e-05,2]
[346776880,1735278496220,-1591.57,9.401e-05,2]
[346776881,1735278496242,-779.89,9.401e-05,2]
[346776882,1735278496264,-256.31225777,9.401e-05,2]
[346776883,1735278496288,-500.0,9.401e-05,2]
[346776884,1735278496311,-1264.18,9.401e-05,2]
[346776885,1735278496336,-1193.14,9.401e-05,2]
[346776886,1735278496358,-503.04,9.401e-05,2]
[346776887,1735278496381,-500.0,9.401e-05,2]
[346776888,1735278496404,-691.77,9.401e-05,2]
[346776889,1735278496428,-708.21,9.401e-05,2]
[346776890,1735278496451,-500.0,9.401e-05,2]
[346776891,1735278496473,-500.0,9.401e-05,2]
[346776892,1735278496496,-625.62,9.401e-05,2]
[346776893,1735278496518,-500.0,9.401e-05,2]
[346776894,1735278496540,-220.5597071,9.401e-05,2]
[346776895,1735278496564,-864.51,9.401e-05,2]
[346776896,1735278496671,-1515.58,9.401e-05,2]
[346776897,1735278496697,-500.0,9.401e-05,2]
[346776898,1735278496719,-500.0,9.401e-05,2]
[346776899,1735278496741,-516.43,9.401e-05,2]
[346776900,1735278496765,-500.0,9.401e-05,2]
[346776901,1735278496787,-506.88,9.401e-05,2]
[346776902,1735278496811,-500.0,9.401e-05,2]
[346776903,1735278496836,-696.84,9.401e-05,2]
[346776904,1735278496862,-500.0,9.401e-05,2]
[346776905,1735278496885,-791.4,9.401e-05,2]
[346776906,1735278496908,-500.0,9.401e-05,2]
[346776907,1735278496932,-500.0,9.401e-05,2]
[346776908,1735278496956,-807.43,9.401e-05,2]
[346776909,1735278496979,-18420.38,9.401e-05,2]
[346776910,1735278497003,-818.99,9.401e-05,2]
[346776911,1735278497028,-500.0,9.401e-05,2]
[346776912,1735278497052,-500.0,9.402e-05,2]
[346776913,1735278497075,-490.58179665,9.402e-05,2]
[346776914,1735278497097,-500.0,9.402e-05,2]
[346776915,1735278497119,-503.86829391,9.402e-05,2]
[346776916,1735278497144,-500.0,9.402e-05,2]
[346776917,1735278497166,-348.85707521,9.402e-05,2]
[346776918,1735278497190,-500.0,9.402e-05,2]
[346776919,1735278497212,-500.0,9.402e-05,2]
[346776920,1735278497234,-502.08824874,9.402e-05,2]
[346776921,1735278497256,-500.0,9.402e-05,2]
[346776922,1735278497278,-500.0,9.402e-05,2]
[346776923,1735278497300,-500.0,9.402e-05,2]
[346776924,1735278497323,-500.0,9.402e-05,2]
[346776925,1735278497345,-500.0,9.402e-05,2]
[346776926,1735278497367,-500.0,9.402e-05,2]
[346776927,1735278497389,-503.6905916,9.402e-05,2]
[346776928,1735278497412,-500.0,9.402e-05,2]
[346776929,1735278497434,-500.0,9.402e-05,2]
[346776930,1735278497457,-500.0,9.402e-05,2]
[346776931,1735278497479,-500.0,9.402e-05,2]
[346776932,1735278497502,-500.0,9.402e-05,2]
[346776933,1735278497525,-500.0,9.402e-05,2]
[346776934,1735278497548,-500.0,9.402e-05,2]
[346776935,1735278497572,-500.0,9.402e-05,2]
[346776936,1735278497596,-500.0,9.402e-05,2]
[346776937,1735278497621,-500.0,9.402e-05,2]
[346776938,1735278497645,-500.0,9.402e-05,2]
[346776939,1735278497670,-150.98298675,9.402e-05,2]
[346776940,1735278497694,-500.0,9.402e-05,2]
[346776941,1735278497719,-500.0,9.402e-05,2]
[346776942,1735278497745,-500.0,9.402e-05,2]
[346776943,1735278497769,-306.93225323,9.402e-05,2]
[346776944,1735278497797,-500.0,9.402e-05,2]
[346776945,1735278497821,-500.0,9.402e-05,2]
[346776946,1735278497845,-500.0,9.402e-05,2]
[346776947,1735278497870,-500.0,9.402e-05,2]
[346776948,1735278497894,-500.0,9.402e-05,2]
[346776949,1735278497918,-500.0,9.402e-05,2]
[346776950,1735278497946,-500.0,9.402e-05,2]
[346776951,1735278497973,-500.0,9.402e-05,2]
[346776952,1735278497997,-500.0,9.402e-05,2]
[346776953,1735278498022,-500.0,9.402e-05,2]
[346776954,1735278498048,-500.0,9.402e-05,2]
[346776955,1735278498074,-637.37708059,9.402e-05,2]
[346776956,1735278498102,-284.97,9.402e-05,2]
[346776957,1735278498127,-500.0,9.402e-05,2]
[346776958,1735278498152,-138.4993839,9.402e-05,2]
[346776991,1735278555684,-300.0,9.399e-05,2]
[346776992,1735278555711,-300.0,9.399e-05,2]
[346776993,1735278555737,-885.65535195,9.4e-05,2]
[346776994,1735278555767,-164.26120479,9.4e-05,2]
[346776995,1735278555810,-1485.65535195,9.4e-05,2]
[346777012,1735278580609,-502.59809131,9.4e-05,2]
[346777013,1735278580636,-557.11,9.4e-05,2]
[346777014,1735278580661,-488.65869882,9.4e-05,2]
[346777015,1735278580691,-11.34130118,9.4e-05,2]
[346777016,1735278580716,-500.0,9.4e-05,2]
[346777017,1735278580741,-500.0,9.4e-05,2]
[346777018,1735278580766,-312.11741551,9.4e-05,2]
[346777031,1735278605657,-300.0,9.399e-05,2]
[346777032,1735278605687,-300.0,9.399e-05,2]
[346777033,1735278605717,-187.88258449,9.4e-05,2]
[346777034,1735278605745,-509.5,9.4e-05,2]
[346777035,1735278605774,-308.42071577,9.4e-05,2]
[346777036,1735278605817,-191.57928423,9.4e-05,2]
[346777037,1735278605847,-500.0,9.4e-05,2]
[346777038,1735278605876,-41.37097843,9.4e-05,2]
[346777146,1735278638488,-458.62902157,9.4e-05,2]
[346777148,1735278638497,-663.2326991,9.4e-05,2]
[346777150,1735278638507,-963.85780383,9.4e-05,2]
[346777152,1735278638519,-561.39219617,9.4e-05,2]
[346777155,1735278638529,-500.0,9.4e-05,2]
[346777158,1735278638539,-2474.8,9.4e-05,2]
[346777160,1735278638549,-500.0,9.4e-05,2]
[346777162,1735278638558,-1143.43,9.4e-05,2]
[346777163,1735278638568,-621.95393674,9.4e-05,2]
[346777165,1735278638578,-625.24,9.4e-05,2]
[346777167,1735278638587,-662.95,9.4e-05,2]
[346777169,1735278638596,-500.0,9.4e-05,2]
[346777171,1735278638605,-919.46,9.4e-05,2]
[346777173,1735278638616,-500.0,9.4e-05,2]
[346777175,1735278638625,-500.0,9.401e-05,2]
[346777177,1735278638634,-500.0,9.401e-05,2]
[346777179,1735278638644,-500.0,9.401e-05,2]
[346777181,1735278638653,-500.0,9.401e-05,2]
[346777183,1735278638662,-500.93,9.401e-05,2]
[346777185,1735278638674,-747.4,9.401e-05,2]
[346777187,1735278638684,-500.0,9.401e-05,2]
[346777189,1735278638693,-1211.51,9.401e-05,2]
[346777191,1735278638704,-238.16,9.401e-05,2]
[346777193,1735278638713,-500.0,9.401e-05,2]
[346777195,1735278638723,-532.64,9.401e-05,2]
[346777197,1735278638733,-678.7,9.401e-05,2]
[346777199,1735278638743,-500.0,9.401e-05,2]
[346777201,1735278638752,-522.19,9.401e-05,2]
[346777203,1735278638761,-599.56,9.401e-05,2]
[346777205,1735278638770,-500.0,9.401e-05,2]
[346777207,1735278638780,-500.0,9.401e-05,2]
[346777209,1735278638789,-500.0,9.401e-05,2]
[346777211,1735278638798,-500.0,9.401e-05,2]
[346777213,1735278638807,-500.0,9.401e-05,2]
[346777215,1735278638816,-361.5006161,9.402e-05,2]
[346777217,1735278638826,-500.0,9.402e-05,2]
[346777219,1735278638835,-500.0,9.402e-05,2]
[346777221,1735278638844,-525.36,9.402e-05,2]
[346777223,1735278638853,-500.0,9.402e-05,2]
[346777225,1735278638862,-500.0,9.402e-05,2]
[346777226,1735278638871,-503.48671904,9.402e-05,2]
[346777227,1735278638880,-500.0,9.402e-05,2]
[346777228,1735278638890,-176.16055424,9.402e-05,2]
[346777281,1735278643671,-323.83944576,9.402e-05,2]
[346777282,1735278643680,-500.0,9.402e-05,2]
[346777283,1735278643690,-500.0,9.402e-05,2]
[346777284,1735278643701,-500.0,9.402e-05,2]
[346777285,1735278643711,-500.0,9.402e-05,2]
[346777286,1735278643721,-500.0,9.402e-05,2]
[346777287,1735278643732,-500.0,9.402e-05,2]
[346777288,1735278643744,-500.0,9.402e-05,2]
[346777289,1735278643754,-500.0,9.402e-05,2]
[346777290,1735278643765,-500.0,9.402e-05,2]
[346777291,1735278643774,-500.0,9.402e-05,2]
[346777292,1735278643784,-500.0,9.402e-05,2]
[346777293,1735278643793,-500.0,9.402e-05,2]
[346777294,1735278643803,-500.0,9.402e-05,2]
[346777295,1735278643813,-500.0,9.402e-05,2]
[346777296,1735278643824,-500.0,9.402e-05,2]
[346777297,1735278643835,-500.0,9.402e-05,2]
[346777298,1735278643845,-500.0,9.402e-05,2]
[346777299,1735278643854,-500.0,9.402e-05,2]
[346777300,1735278643863,-500.0,9.402e-05,2]
[346777301,1735278643873,-500.0,9.402e-05,2]
[346777302,1735278643883,-500.0,9.402e-05,2]